bitfinex/quotes_SOLUSD_20260213
["timestamp","ask_amount","ask_price","bid_price","bid_amount"]
[1770990539386,0.77085447,80.134,80.094,53.18]
[1770990539581,0.77085447,80.134,80.095,0.77347048]
[1770990539786,0.77085447,80.134,80.1,11.56786696]
[1770990540303,0.77085447,80.132,80.101,43.69483526]
[1770990540503,0.77085447,80.143,80.111,0.77347048]
[1770990541187,0.73299318,80.155,80.121,0.71394619]
[1770990541492,11.56786696,80.16,80.121,0.71394619]
[1770990541695,0.73299318,80.159,80.12,53.18]
[1770990541899,0.73299318,80.139,80.12,53.18]
[1770990542088,12.47205679,80.18,80.121,0.71394619]
[1770990542288,12.47053835,80.189,80.151,0.71394619]
[1770990542495,12.47053835,80.189,80.161,0.71394619]
[1770990542692,0.2,80.19,80.161,0.71394619]
[1770990542901,0.2,80.19,80.171,0.71394619]
[1770990543098,11.56786696,80.21,80.171,0.71394619]
[1770990543400,140.7376963,81.246,80.169,54.18]
[1770990543401,12.66261641,80.24,80.201,0.71394619]
[1770990543579,0.93299318,80.24,80.21,11.56786696]
[1770990544006,0.73299318,80.238,80.202,54.2]
[1770990544406,0.73299318,80.236,80.202,54.2]
[1770990544607,11.56786696,80.23,80.19,11.56786696]
[1770990544818,12.46276748,80.239,80.21,11.56786696]
[1770990545318,0.93299318,80.24,80.21,11.56786696]
[1770990545521,0.93299318,80.24,80.211,0.71394619]
[1770990545724,0.73299318,80.238,80.21,11.56786696]
[1770990545896,0.73299318,80.259,80.231,0.71394619]
[1770990546098,0.73299318,80.249,80.217,54.85394619]
[1770990546310,0.73299318,80.247,80.21,11.56786696]
[1770990546526,0.73299318,80.247,80.208,0.71394619]
[1770990546826,0.73299318,80.248,80.22,11.56786696]
[1770990547002,31.1496149,80.258,80.22,11.56786696]
[1770990547003,0.73299318,80.257,80.221,0.71394619]
[1770990547421,0.73299318,80.256,80.221,0.71394619]
[1770990548222,12.30086014,80.25,80.221,0.71394619]
[1770990548427,0.73299318,80.25,80.222,12.46540849]
[1770990548719,0.73299318,80.259,80.23,12.28181315]
[1770990548908,0.2,80.26,80.231,0.71394619]
[1770990549298,0.73299318,80.259,80.23,11.56786696]
[1770990549524,0.73299318,80.259,80.222,12.46540849]
[1770990550607,0.73299318,80.238,80.21,11.56786696]
[1770990550802,0.73299318,80.249,80.211,0.71394619]
[1770990551121,13.19281026,80.258,80.221,0.71394619]
[1770990551327,0.73299318,80.257,80.221,0.71394619]
[1770990551638,11.76786696,80.26,80.206,12.46789516]
[1770990551639,0.2,80.26,80.231,0.71394619]
[1770990552327,0.73299318,80.258,80.222,0.71394619]
[1770990552521,0.73299318,80.256,80.222,0.71394619]
[1770990552724,0.73299318,80.249,80.219,54.06]
[1770990553021,0.73299318,80.249,80.215,12.4664256]
[1770990553214,0.73299318,80.239,80.209,54.04]
[1770990553420,0.73299318,80.239,80.21,11.56786696]
[1770990553626,0.73299318,80.249,80.211,0.71394619]
[1770990554031,12.45997233,80.257,80.211,0.71394619]
[1770990554335,12.45997233,80.257,80.221,0.71394619]
[1770990554637,0.2,80.26,80.232,0.71394619]
[1770990555917,12.45966184,80.259,80.232,0.71394619]
[1770990556801,0.2,80.26,80.241,0.71394619]
[1770990559009,0.2,80.26,80.242,12.46230153]
[1770990559209,0.2,80.26,80.229,31.16057477]
[1770990559210,0.2,80.26,80.243,0.71394619]
[1770990560702,0.2,80.27,80.251,0.71394619]
[1770990561139,0.2,80.28,80.263,0.71394619]
[1770990561430,51.3928616,80.333,80.252,12.46074864]
[1770990561431,0.73299318,80.303,80.271,0.71394619]
[1770990562131,0.2,80.31,80.28,11.56786696]
[1770990562309,0.2,80.31,80.29,11.56786696]
[1770990562627,0.2,80.31,80.281,0.71394619]
[1770990563034,0.73299318,80.309,80.28,11.56786696]
[1770990563232,0.73299318,80.307,80.281,12.45624743]
[1770990563713,0.73299318,80.307,80.28,11.56786696]
[1770990563909,0.73299318,80.307,80.28,12.28181315]
[1770990564227,0.73299318,80.308,80.28,11.56786696]
[1770990564421,0.73299318,80.299,80.27,65.64786696]
[1770990564616,0.73299318,80.299,80.27,11.56786696]
[1770990564932,12.45190451,80.309,80.269,12.45807]
[1770990564933,0.73299318,80.309,80.29,11.56786696]
[1770990565111,0.2,80.31,80.29,11.56786696]
[1770990565718,0.2,80.31,80.3,11.56786696]
[1770990565923,0.2,80.31,80.292,54.04]
[1770990566122,0.93299318,80.31,80.292,54.04]
[1770990566328,0.73299318,80.309,80.292,54.04]
[1770990567234,0.73299318,80.309,80.283,12.45587006]
[1770990567450,0.2,80.31,80.29,11.56786696]
[1770990567639,0.2,80.31,80.3,11.56786696]
[1770990568316,0.2,80.31,80.29,11.56786696]
[1770990568515,0.2,80.33,80.301,0.71394619]
[1770990568726,0.2,80.33,80.31,11.56786696]
[1770990568933,0.73299318,80.329,80.3,11.56786696]
[1770990569335,0.73299318,80.328,80.3,11.56786696]
[1770990570136,0.73299318,80.326,80.3,11.56786696]
[1770990570335,0.73299318,80.326,80.301,12.45314504]
[1770990571937,0.73299318,80.326,80.297,54.0]
[1770990572139,43.57189985,80.327,80.277,0.73082001]
[1770990572140,0.72348348,80.319,80.292,54.0]
[1770990572336,0.72348348,80.317,80.292,54.0]
[1770990572516,0.72348348,80.317,80.3,11.56786696]
[1770990573033,0.72348348,80.329,80.3,11.56786696]
[1770990574141,0.2,80.33,80.311,0.73082001]
[1770990574349,0.2,80.33,80.312,13.18225939]
[1770990574638,0.2,80.33,80.312,43.58003784]
[1770990575247,0.72348348,80.329,80.312,12.45143938]
[1770990575630,0.72348348,80.329,80.302,31.13219708]
[1770990575821,11.76786696,80.33,80.301,0.72629249]
[1770990575822,0.2,80.33,80.301,0.72629249]
[1770990576139,0.75865417,80.342,80.311,0.72629249]
[1770990576654,0.2,80.35,80.321,0.72629249]
[1770990577147,4.61729252,80.378,80.312,43.58003784]
[1770990577148,11.56786696,80.37,80.331,0.72629249]
[1770990577464,11.56786696,80.37,80.332,54.64629249]
[1770990577658,11.56786696,80.37,80.333,0.72629249]
[1770990578348,11.56786696,80.36,80.334,12.44802947]
[1770990578545,11.56786696,80.35,80.321,12.45004419]
[1770990578849,11.56786696,80.35,80.322,0.78679858]
[1770990579751,11.56786696,80.36,80.322,0.78679858]
[1770990579958,11.56786696,80.36,80.321,43.57515468]
[1770990579959,11.56786696,80.37,80.331,0.78679858]
[1770990580138,11.56786696,80.37,80.33,11.56786696]
[1770990580139,11.56786696,80.37,80.341,0.78679858]
[1770990580333,11.56786696,80.37,80.342,43.5637649]
[1770990580647,11.56786696,80.37,80.343,0.78679858]
[1770990580949,11.56786696,80.37,80.342,12.44678997]
[1770990581136,11.56786696,80.36,80.338,12.44729656]
[1770990582649,11.56786696,80.36,80.335,31.90648489]
[1770990583224,11.56786696,80.35,80.331,12.44849435]
[1770990583426,11.56786696,80.36,80.331,12.44849435]
[1770990585640,24.01200368,80.36,80.328,0.78679858]
[1770990585953,11.56786696,80.35,80.328,0.78679858]
[1770990586242,11.56786696,80.35,80.327,12.44911424]
[1770990586446,11.56786696,80.35,80.328,0.78679858]
[1770990586750,24.01200368,80.36,80.328,0.78679858]
[1770990586953,23.93893221,80.36,80.328,0.78679858]
[1770990587732,11.49479549,80.36,80.33,0.78679858]
[1770990588050,11.49479549,80.36,80.331,0.78679858]
[1770990589345,11.49479549,80.37,80.331,0.78679858]
[1770990589956,11.49479549,80.37,80.333,0.78679858]
[1770990590161,12.44260846,80.369,80.333,0.78679858]
[1770990590651,11.49479549,80.35,80.327,12.4489758]
[1770990593049,11.49479549,80.34,80.312,0.78679858]
[1770990593752,11.49479549,80.33,80.311,12.45159442]
[1770990594055,11.49479549,80.34,80.311,13.238393]
[1770990594460,12.44725475,80.339,80.312,0.78679858]
[1770990595249,62.21657664,80.365,80.312,0.78679858]
[1770990595250,11.49479549,80.35,80.312,0.78679858]
[1770990595458,11.49479549,80.35,80.31,11.49479549]
[1770990595459,11.49479549,80.36,80.331,0.78679858]
[1770990595852,11.49479549,80.37,80.331,0.78679858]
[1770990596745,11.49479549,80.37,80.333,0.78679858]
[1770990596945,12.44106047,80.379,80.341,0.78679858]
[1770990598139,11.49479549,80.37,80.341,0.78679858]
[1770990599441,11.49479549,80.37,80.342,12.44678997]
[1770990599645,11.49479549,80.37,80.343,0.78679858]
[1770990601342,11.69479549,80.38,80.343,0.78679858]
[1770990601657,0.2,80.38,80.36,11.49479549]
[1770990601856,0.2,80.38,80.344,97.28268046]
[1770990601857,11.49479549,80.4,80.371,0.78679858]
[1770990602048,46.54,80.415,80.371,0.78679858]
[1770990602049,11.49479549,80.41,80.371,0.78679858]
[1770990602441,12.43564553,80.414,80.344,143.13452154]
[1770990602442,11.69479549,80.42,80.391,0.78679858]
[1770990602850,11.49479549,80.44,80.401,0.78679858]
[1770990603058,11.49479549,80.44,80.411,0.78679858]
[1770990603463,11.49479549,80.44,80.377,4.61729252]
[1770990603464,11.49479549,80.43,80.404,0.78679858]
[1770990603962,11.49479549,80.44,80.404,0.78679858]
[1770990604168,11.49479549,80.43,80.404,0.78679858]
[1770990604541,11.49479549,80.42,80.397,53.66]
[1770990604745,11.49479549,80.41,80.389,12.43951286]
[1770990604974,11.49479549,80.41,80.388,0.78679858]
[1770990605161,11.49479549,80.41,80.381,0.78679858]
[1770990605345,11.49479549,80.41,80.382,12.44046172]
[1770990605862,11.49479549,80.41,80.383,0.78679858]
[1770990606564,11.49479549,80.41,80.385,0.78679858]
[1770990607370,11.49479549,80.42,80.385,0.78679858]
[1770990607567,11.49479549,80.42,80.391,0.78679858]
[1770990607767,11.49479549,80.41,80.385,0.78679858]
[1770990608266,0.02298068,80.426,80.39,11.49479549]
[1770990608454,11.49479549,80.42,80.391,0.78679858]
[1770990608653,12.43487235,80.419,80.391,0.78679858]
[1770990608848,11.49479549,80.42,80.392,12.43904866]
[1770990609061,11.49479549,80.42,80.393,0.78679858]
[1770990609565,0.02358924,80.434,80.393,0.78679858]
[1770990609757,11.49479549,80.43,80.393,0.78679858]
[1770990610146,11.49479549,80.43,80.4,11.49479549]
[1770990610346,12.45612146,80.438,80.401,0.78679858]
[1770990610972,11.59479549,80.45,80.411,0.78679858]
[1770990611168,12.4302353,80.449,80.411,0.78679858]
[1770990611957,11.49479549,80.44,80.411,0.78679858]
[1770990612862,12.4317806,80.439,80.411,0.78679858]
[1770990613063,12.45773457,80.439,80.411,0.78679858]
[1770990613577,11.49479549,80.42,80.39,65.07479549]
[1770990613779,0.02653803,80.419,80.39,53.58]
[1770990613957,0.02653803,80.399,80.359,0.78679858]
[1770990614163,11.49479549,80.4,80.361,0.78679858]
[1770990615069,205.12437993,80.439,80.371,0.78679858]
[1770990615070,46.34,80.411,80.371,0.78679858]
[1770990615274,11.49479549,80.41,80.371,0.78679858]
[1770990615658,11.49479549,80.4,80.371,0.78679858]
[1770990615865,31.08821105,80.417,80.362,12.44369229]
[1770990615866,11.49479549,80.39,80.363,0.78679858]
[1770990616062,11.49479549,80.4,80.363,0.78679858]
[1770990616558,11.49479549,80.39,80.363,0.78679858]
[1770990617269,12.43951286,80.389,80.363,0.78679858]
[1770990617676,12.43951286,80.389,80.343,53.52]
[1770990617677,11.49479549,80.38,80.346,0.78679858]
[1770990618064,12.43951286,80.389,80.351,0.78679858]
[1770990619176,0.02931823,80.378,80.344,12.44640364]
[1770990619359,12.44106047,80.379,80.345,0.78679858]
[1770990620073,12.44106047,80.379,80.351,0.78679858]
[1770990621172,11.49479549,80.38,80.352,12.44524093]
[1770990621379,11.49479549,80.38,80.353,0.78679858]
[1770990621575,11.49479549,80.38,80.347,12.44599335]
[1770990621576,23.96615489,80.38,80.347,12.44599335]
[1770990621783,11.49479549,80.37,80.345,0.78679858]
[1770990623274,11.49479549,80.37,80.33,11.49479549]
[1770990623275,11.49479549,80.35,80.326,0.78679858]
[1770990623454,11.49479549,80.35,80.327,0.78679858]
[1770990623655,12.44415684,80.359,80.327,0.78679858]
[1770990624671,12.44415684,80.359,80.326,12.44922262]
[1770990624672,11.49479549,80.35,80.322,12.44984434]
[1770990624980,11.49479549,80.35,80.323,0.78679858]
[1770990625693,11.49479549,80.35,80.325,0.78679858]
[1770990626570,23.94042271,80.35,80.325,0.78679858]
[1770990626775,23.94042271,80.35,80.316,0.78679858]
[1770990627363,108.53324003,80.369,80.31,11.49479549]
[1770990627364,11.49479549,80.36,80.321,0.78679858]
[1770990627772,11.49479549,80.35,80.323,0.78679858]
[1770990628169,0.03396211,80.35,80.323,0.78679858]
[1770990628493,11.5287576,80.35,80.323,0.78679858]
[1770990628690,11.5287576,80.34,80.313,12.45121781]
[1770990628866,0.03396211,80.34,80.307,0.78679858]
[1770990629067,11.49479549,80.35,80.311,0.78679858]
[1770990629684,11.49479549,80.36,80.321,0.78679858]
[1770990629888,12.44415684,80.359,80.323,0.78679858]
[1770990630084,11.49479549,80.35,80.323,0.78679858]
[1770990630264,12.44415684,80.359,80.323,0.78679858]
[1770990630691,11.49479549,80.35,80.323,0.78679858]
[1770990631086,11.49479549,80.37,80.331,0.78679858]
[1770990631989,12.44260846,80.369,80.333,0.78679858]
[1770990632889,11.49479549,80.38,80.341,0.78679858]
[1770990633083,12.47301213,80.397,80.361,0.78679858]
[1770990633596,12.43827506,80.397,80.361,0.78679858]
[1770990633893,4.61729252,80.418,80.361,0.78679858]
[1770990633894,11.49479549,80.41,80.383,0.78679858]
[1770990634777,12.4364188,80.409,80.383,0.78679858]
[1770990635697,11.49479549,80.41,80.383,0.78679858]
[1770990635872,11.49479549,80.42,80.385,0.78679858]
[1770990636071,31.08297728,80.43,80.391,0.78679858]
[1770990636072,11.49479549,80.43,80.391,0.78679858]
[1770990636470,11.49479549,80.42,80.387,53.6]
[1770990636676,11.49479549,80.42,80.388,0.78679858]
[1770990636886,12.43332628,80.429,80.391,0.78679858]
[1770990637773,11.49479549,80.42,80.391,0.78679858]
[1770990637985,12.43487235,80.419,80.391,13.22588473]
[1770990638201,12.43487235,80.419,80.392,0.78679858]
[1770990638594,11.49479549,80.42,80.392,0.78679858]
[1770990640297,12.43215999,80.437,80.4,11.49479549]
[1770990640600,12.4302353,80.449,80.421,0.78679858]
[1770990640902,24.02488767,80.45,80.421,0.78679858]
[1770990641093,11.49479549,80.44,80.421,0.78679858]
[1770990641412,24.02488767,80.45,80.421,0.78679858]
[1770990642880,11.49479549,80.43,80.404,0.78679858]
[1770990643081,11.49479549,80.43,80.405,0.78679858]
[1770990643995,0.03420755,80.429,80.4,53.6]
[1770990644198,11.49479549,80.43,80.401,0.78679858]
[1770990644701,12.43332628,80.429,80.401,0.78679858]
[1770990645204,12.43273592,80.433,80.403,0.78679858]
[1770990645499,11.49479549,80.43,80.403,0.78679858]
[1770990645703,11.49479549,80.43,80.392,31.09752713]
[1770990645704,0.03416373,80.429,80.394,0.78679858]
[1770990645878,0.03412694,80.419,80.391,53.62]
[1770990646077,11.49479549,80.42,80.392,0.78679858]
[1770990646900,12.43487235,80.419,80.392,0.78679858]
[1770990647486,12.43487235,80.419,80.385,0.78679858]
[1770990648306,11.47831294,80.42,80.391,0.78679858]
[1770990648800,12.43409927,80.424,80.391,0.78679858]
[1770990649895,12.43356606,80.428,80.393,0.78679858]
[1770990650293,12.43356606,80.428,80.401,0.78679858]
[1770990651605,11.47831294,80.42,80.392,12.43904866]
[1770990651779,11.47831294,80.42,80.392,13.22584724]
[1770990652400,0.03390105,80.419,80.391,53.62]
[1770990652597,11.47831294,80.41,80.383,0.78679858]
[1770990653005,11.51218038,80.4,80.365,0.78679858]
[1770990653217,43.52164875,80.42,80.365,0.78679858]
[1770990653501,43.52164875,80.42,80.371,0.78679858]
[1770990653502,11.47831294,80.41,80.371,0.78679858]
[1770990653695,11.47831294,80.4,80.371,0.78679858]
[1770990653890,11.47831294,80.4,80.351,53.64]
[1770990653891,11.47831294,80.39,80.36,12.26511152]
[1770990654097,11.47831294,80.39,80.36,0.78679858]
[1770990654294,11.47831294,80.38,80.36,0.78679858]
[1770990654496,12.44056073,80.383,80.36,0.78679858]
[1770990654809,11.47831294,80.37,80.342,0.78679858]
[1770990655187,0.03383369,80.381,80.342,0.78679858]
[1770990655393,11.47831294,80.37,80.342,0.78679858]
[1770990656308,11.47831294,80.4,80.332,12.44833939]
[1770990656309,11.47831294,80.39,80.361,0.78679858]
[1770990656509,11.47831294,80.39,80.36,11.47831294]
[1770990656510,11.47831294,80.39,80.363,0.78679858]
[1770990657185,11.47831294,80.4,80.363,0.78679858]
[1770990658313,11.47831294,80.39,80.363,0.78679858]
[1770990658613,23.91775555,80.39,80.364,12.4433826]
[1770990658992,23.91775555,80.39,80.363,0.78679858]
[1770990659191,11.47831294,80.38,80.363,0.78679858]
[1770990659399,12.43944261,80.39,80.363,0.78679858]
[1770990659400,23.91775555,80.39,80.363,0.78679858]
[1770990660000,0.03364586,80.405,80.365,0.78679858]
[1770990660202,11.47831294,80.39,80.365,0.78679858]
[1770990660704,11.5119178,80.38,80.347,13.23610908]
[1770990660912,11.47831294,80.38,80.348,0.79009368]
[1770990661615,11.47831294,80.39,80.351,0.79009368]
[1770990662409,43.52908985,80.406,80.361,0.79009368]
[1770990662410,11.47831294,80.4,80.361,0.79009368]
[1770990662611,23.91624454,80.4,80.371,0.79009368]
[1770990663015,12.43697061,80.406,80.371,0.79009368]
[1770990663233,11.47831294,80.42,80.391,0.79009368]
[1770990663696,12.43409927,80.424,80.391,0.79009368]
[1770990663896,12.43335705,80.429,80.391,0.79009368]
[1770990664298,12.43335705,80.429,80.393,0.79009368]
[1770990664915,11.47831294,80.42,80.393,0.79009368]
[1770990665307,11.47831294,80.41,80.385,0.79009368]
[1770990665699,11.47831294,80.42,80.391,0.79009368]
[1770990665916,12.43335705,80.429,80.391,0.79009368]
[1770990666118,11.47831294,80.42,80.391,0.79009368]
[1770990667619,12.43487235,80.419,80.391,0.79009368]
[1770990667822,11.47831294,80.42,80.392,0.79009368]
[1770990668320,0.03333246,80.447,80.411,0.79009368]
[1770990668509,0.03333246,80.446,80.411,0.79009368]
[1770990668822,11.47831294,80.44,80.411,0.79009368]
[1770990669032,11.47831294,80.43,80.401,0.79009368]
[1770990669403,0.03331196,80.439,80.401,0.79009368]
[1770990669603,23.91002884,80.44,80.411,0.79009368]
[1770990670127,12.43116243,80.443,80.411,0.79009368]
[1770990670323,12.43041991,80.448,80.411,0.79009368]
[1770990671225,11.47831294,80.44,80.411,0.79009368]
[1770990671420,0.03325569,80.439,80.403,0.79009368]
[1770990672008,11.47831294,80.43,80.402,53.6]
[1770990672327,11.47831294,80.43,80.399,0.79009368]
[1770990672725,0.0332279,80.431,80.399,0.79009368]
[1770990672726,11.47831294,80.42,80.399,0.79009368]
[1770990672927,11.47831294,80.42,80.39,0.79009368]
[1770990673139,11.51151276,80.42,80.39,0.79009368]
[1770990673428,12.43487235,80.419,80.392,12.43904866]
[1770990673635,12.43487235,80.419,80.393,0.79009368]
[1770990674130,57.99831294,80.43,80.393,0.79009368]
[1770990674329,12.43366254,80.427,80.393,0.79009368]
[1770990674731,46.52,80.433,80.401,0.79009368]
[1770990675054,11.47831294,80.43,80.401,0.79009368]
[1770990675504,11.47831294,80.42,80.396,12.43832937]
[1770990675708,11.47831294,80.42,80.397,0.79009368]
[1770990676805,11.47831294,80.43,80.397,0.79009368]
[1770990677010,12.4302353,80.449,80.411,0.79009368]
[1770990677627,12.46332413,80.449,80.413,0.79009368]
[1770990677819,0.03308883,80.448,80.413,0.79009368]
[1770990678620,12.4302353,80.449,80.413,0.79009368]
[1770990679426,12.46326963,80.449,80.413,0.79009368]
[1770990679632,0.03303433,80.448,80.413,0.79009368]
[1770990680025,12.4302353,80.449,80.415,0.79009368]
[1770990680212,59.0302353,80.449,80.421,0.79009368]
[1770990681514,11.47831294,80.44,80.411,0.79009368]
[1770990681719,0.03298095,80.439,80.402,0.79009368]
[1770990682340,43.50582356,80.449,80.394,0.79009368]
[1770990682341,11.47831294,80.43,80.394,0.79009368]
[1770990682522,58.11831294,80.43,80.401,0.79009368]
[1770990683445,12.43332628,80.429,80.403,0.79009368]
[1770990683612,46.64,80.431,80.403,0.79009368]
[1770990683924,12.4331717,80.43,80.403,0.79009368]
[1770990684323,12.43116243,80.443,80.411,0.79009368]
[1770990684526,11.51122189,80.44,80.411,0.79009368]
[1770990685239,0.03287505,80.439,80.403,0.79009368]
[1770990685530,70.57001737,80.44,80.411,0.79009368]
[1770990686355,70.60287863,80.44,80.411,0.79009368]
[1770990686638,46.68,80.439,80.411,0.79009368]
[1770990687563,12.43054433,80.447,80.413,0.79009368]
[1770990687845,11.47831294,80.44,80.413,0.79009368]
[1770990688048,0.03284088,80.445,80.413,0.79009368]
[1770990688341,11.47831294,80.44,80.413,0.79009368]
[1770990688522,11.47831294,80.43,80.403,0.79009368]
[1770990688932,11.47831294,80.44,80.403,0.79009368]
[1770990689123,11.47831294,80.43,80.403,0.79009368]
[1770990689745,11.47831294,80.42,80.395,0.79009368]
[1770990690538,46.72,80.429,80.401,0.79009368]
[1770990690842,12.4317806,80.439,80.401,0.79009368]
[1770990691031,11.47831294,80.43,80.401,0.79009368]
[1770990692042,12.43332628,80.429,80.401,0.79009368]
[1770990693026,12.43332628,80.429,80.403,0.78704777]
[1770990694250,43.51664199,80.429,80.403,0.78704777]
[1770990696827,0.03257782,80.419,80.39,0.78679858]
[1770990697047,1.6,80.428,80.391,0.78679858]
[1770990697264,1.6,80.428,80.401,0.78679858]
[1770990697584,1.6,80.428,80.411,0.78679858]
[1770990697730,46.8,80.446,80.411,0.78679858]
[1770990698455,0.1,80.45,80.431,0.78679858]
[1770990698635,0.1,80.45,80.433,0.78679858]
[1770990698824,46.82,80.471,80.441,0.78679858]
[1770990699024,46.82,80.471,80.451,0.77220528]
[1770990699249,12.4256017,80.479,80.451,0.77220528]
[1770990699840,4.28517118,80.46,80.433,0.77220528]
[1770990700321,46.82,80.464,80.433,0.77220528]
[1770990700938,12.42807253,80.463,80.441,0.77220528]
[1770990702750,12.42755966,80.467,80.441,0.77220528]
[1770990703633,0.13279605,80.459,80.432,0.77220528]
[1770990704232,11.46275303,80.46,80.432,0.77220528]
[1770990704745,11.46275303,80.46,80.425,53.52]
[1770990704746,0.13284694,80.459,80.425,53.52]
[1770990705045,11.46275303,80.45,80.425,54.29220528]
[1770990705246,12.42869038,80.459,80.427,0.77220528]
[1770990706253,11.46275303,80.47,80.441,0.77220528]
[1770990706941,11.4617311,80.47,80.441,0.77220528]
[1770990707350,12.42714585,80.469,80.441,0.77220528]
[1770990707544,12.42714585,80.469,80.442,0.77220528]
[1770990707753,12.42662083,80.473,80.442,0.77220528]
[1770990708052,11.4617311,80.47,80.442,0.77220528]
[1770990708557,12.42662083,80.473,80.442,0.77220528]
[1770990709143,43.49294121,80.473,80.442,0.77220528]
[1770990709836,12.42662083,80.473,80.444,0.77220528]
[1770990710550,0.1,80.48,80.461,0.77220528]
[1770990710754,11.6617311,80.5,80.471,0.77220528]
[1770990710936,12.42291379,80.497,80.471,0.77220528]
[1770990711542,0.2,80.5,80.48,11.4617311]
[1770990711852,0.2,80.5,80.481,0.77220528]
[1770990713259,12.42251456,80.499,80.481,0.77220528]
[1770990713554,0.2,80.5,80.481,0.77220528]
[1770990713940,12.42251456,80.499,80.473,0.77220528]
[1770990716340,12.42251456,80.499,80.454,31.07349599]
[1770990716341,0.1333992,80.489,80.457,0.77220528]
[1770990716757,0.1333992,80.498,80.461,0.77220528]
[1770990717944,0.13348102,80.489,80.451,0.77220528]
[1770990718144,0.13348102,80.487,80.451,0.77220528]
[1770990719150,0.13348102,80.487,80.453,0.77220528]
[1770990720163,12.42436666,80.487,80.454,12.42946279]
[1770990720345,46.92,80.488,80.461,0.77220528]
[1770990720664,11.4617311,80.49,80.461,0.77220528]
[1770990721045,0.13360954,80.489,80.453,0.783011]
[1770990721359,43.48322466,80.491,80.432,0.783011]
[1770990721360,0.13360954,80.469,80.432,0.783011]
[1770990721957,46.96,80.488,80.432,0.783011]
[1770990721958,11.4617311,80.46,80.432,0.783011]
[1770990722350,12.42869038,80.459,80.432,0.783011]
[1770990722947,0.13367034,80.458,80.432,0.783011]
[1770990723173,0.13367034,80.458,80.42,11.4617311]
[1770990723174,90.46041635,80.459,80.421,0.783011]
[1770990723471,0.13367034,80.458,80.422,0.783011]
[1770990723649,11.4617311,80.45,80.422,0.783011]
[1770990724175,90.46041635,80.459,80.422,0.783011]
[1770990724176,12.42869038,80.459,80.422,0.783011]
[1770990724649,12.42869038,80.459,80.431,0.783011]
[1770990724853,11.4617311,80.48,80.441,0.783011]
[1770990725053,12.42405794,80.489,80.461,0.783011]
[1770990725462,12.42260786,80.499,80.461,0.783011]
[1770990725663,12.42260786,80.499,80.471,0.783011]
[1770990726850,12.42260786,80.499,80.455,54.343011]
[1770990726851,0.13380474,80.489,80.455,54.343011]
[1770990727050,0.13380474,80.489,80.456,0.783011]
[1770990727467,0.13380474,80.489,80.457,0.783011]
[1770990728671,0.13380474,80.489,80.461,0.783011]
[1770990729173,12.42405794,80.489,80.461,0.783011]
[1770990729465,12.42323304,80.495,80.471,0.783011]
[1770990729766,11.4617311,80.49,80.463,0.783011]
[1770990730076,12.42323304,80.495,80.463,0.783011]
[1770990730753,12.42258387,80.499,80.471,0.783011]
[1770990731161,0.2,80.5,80.471,0.783011]
[1770990731162,0.2,80.5,80.483,0.783011]
[1770990731472,0.244681,80.504,80.482,12.42513854]
[1770990731473,0.244681,80.504,80.494,0.783011]
[1770990731970,0.2,80.52,80.494,0.783011]
[1770990732171,0.2,80.52,80.501,0.783011]
[1770990732471,12.41634487,80.539,80.511,0.783011]
[1770990732772,12.41480341,80.549,80.521,0.783011]
[1770990733069,0.1,80.55,80.521,0.783011]
[1770990733452,0.1,80.55,80.531,0.783011]
[1770990733867,11.5617311,80.55,80.523,0.783011]
[1770990734070,0.1,80.55,80.523,0.783011]
[1770990734854,0.1,80.55,80.531,0.783011]
[1770990736155,12.41018131,80.579,80.532,43.46098444]
[1770990736356,12.14192849,80.55,80.524,0.783011]
[1770990736670,0.68019739,80.549,80.517,53.52]
[1770990737066,0.68019739,80.549,80.517,54.303011]
[1770990737262,11.4617311,80.54,80.51,11.4617311]
[1770990737464,11.4617311,80.54,80.511,12.42066301]
[1770990737663,12.41634487,80.539,80.511,12.42066301]
[1770990738175,11.4617311,80.54,80.512,0.783011]
[1770990739376,13.09640277,80.548,80.512,0.783011]
[1770990739581,12.41495754,80.548,80.521,0.783011]
[1770990741060,12.41202973,80.567,80.531,0.783011]
[1770990741461,0.68224969,80.559,80.531,0.783011]
[1770990741665,0.68224969,80.557,80.527,53.54]
[1770990742080,11.4617311,80.55,80.527,53.54]
[1770990742467,11.4617311,80.55,80.523,0.783011]
[1770990742669,12.41341642,80.558,80.524,12.41865779]
[1770990742877,11.4617311,80.56,80.531,0.783011]
[1770990743263,12.41202973,80.567,80.531,0.783011]
[1770990743466,12.41033532,80.578,80.541,0.783011]
[1770990743881,12.41033532,80.578,80.543,0.783011]
[1770990744066,12.41033532,80.578,80.551,0.783011]
[1770990744465,11.5617311,80.58,80.551,0.783011]
[1770990744765,11.4617311,80.57,80.543,0.783011]
[1770990746564,12.41172162,80.569,80.543,0.783011]
[1770990747678,12.41172162,80.569,80.544,0.783011]
[1770990748778,12.41018131,80.579,80.551,0.783011]
[1770990748963,0.68527357,80.578,80.551,0.783011]